bitfinex-derivatives/quotes_SOLF0:USTF0_20250211
["timestamp","ask_amount","ask_price","bid_price","bid_amount"]
[1739263239762,14.9105,205.77,205.71,5.71570101]
[1739263240857,10.0515,205.77,205.71,10.57590101]
[1739263241762,10.0515,205.77,205.72,4.8601]
[1739263242163,10.0515,205.77,205.71,5.71570101]
[1739263242664,4.8593,205.76,205.71,5.71570101]
[1739263242866,4.8593,205.76,205.7,0.03167919]
[1739263243261,5.71570101,205.76,205.7,0.03167919]
[1739263244167,5.71570101,205.74,205.7,0.03167919]
[1739263246061,4.86,205.73,205.7,0.03167919]
[1739263246266,5.71570101,205.72,205.7,0.03167919]
[1739263246458,5.71570101,205.68,205.63,6.7801249]
[1739263247466,4.2622,205.67,205.65,5.71570101]
[1739263248770,0.03129518,205.68,205.65,5.71570101]
[1739263248965,0.03129518,205.68,205.67,5.71570101]
[1739263249570,4.1357,205.76,205.67,5.71570101]
[1739263249872,4.1357,205.76,205.72,5.71570101]
[1739263250774,4.17153975,205.76,205.72,0.03080757]
[1739263253373,4.17153975,205.76,205.72,5.74650858]
[1739263253775,4.17153975,205.76,205.74,5.71570101]
[1739263254975,0.03583975,205.76,205.74,5.71570101]
[1739263255477,0.03583975,205.76,205.75,4.8595]
[1739263255976,0.03583975,205.76,205.74,10.57540101]
[1739263256377,0.03583975,205.76,205.74,5.71570101]
[1739263256569,0.03583975,205.76,205.75,4.8595]
[1739263256769,0.03583975,205.76,205.74,5.71570101]
[1739263259781,0.03583975,205.76,205.75,4.8595]
[1739263260774,0.03583975,205.76,205.74,5.71570101]
[1739263261380,0.03583975,205.76,205.74,10.57530101]
[1739263261780,0.03583975,205.76,205.74,5.71570101]
[1739263262081,0.03583975,205.76,205.75,4.8595]
[1739263271876,2.988,205.86,205.8,4.8583]
[1739263272080,2.988,205.86,205.81,5.71570101]
[1739263272281,8.70370101,205.86,205.79,5.71570101]
[1739263272887,8.70370101,205.86,205.81,5.71570101]
[1739263273077,0.03504313,205.85,205.81,5.71570101]
[1739263273584,4.89234313,205.85,205.8,0.03472302]
[1739263274380,0.03504313,205.85,205.8,0.03472302]
[1739263275080,4.89224313,205.85,205.8,0.03472302]
[1739263275285,0.03504313,205.85,205.81,5.71570101]
[1739263275486,4.8576,205.84,205.81,5.71570101]
[1739263275682,4.8576,205.84,205.8,0.03472302]
[1739263276588,0.03504313,205.85,205.8,0.03472302]
[1739263276788,4.8574,205.84,205.8,0.03472302]
[1739263276990,0.03504313,205.85,205.8,0.03472302]
[1739263277285,4.8576,205.83,205.8,0.03472302]
[1739263280284,4.8579,205.82,205.8,0.03472302]
[1739263282790,5.75074414,205.85,205.8,0.03472302]
[1739263282995,4.8576,205.83,205.8,0.03472302]
[1739263283294,5.75074414,205.85,205.8,0.03472302]
[1739263283489,4.858,205.82,205.8,0.03472302]
[1739263284490,4.8576,205.83,205.8,0.03472302]
[1739263284696,5.75074414,205.85,205.8,0.03472302]
[1739263285091,5.71570101,205.83,205.8,0.03472302]
[1739263285294,5.71570101,205.81,205.72,5.71570101]
[1739263285589,5.71570101,205.79,205.72,5.71570101]
[1739263286494,5.71570101,205.79,205.73,0.03547461]
[1739263286495,4.8593,205.76,205.73,0.03547461]
[1739263287294,4.859,205.77,205.73,0.03547461]
[1739263289597,0.03325397,205.78,205.73,0.03547461]
[1739263289794,4.89205397,205.78,205.73,0.03547461]
[1739263291792,0.03325397,205.78,205.73,0.03547461]
[1739263291998,4.8592,205.77,205.73,0.03547461]
[1739263292199,10.57490101,205.77,205.73,0.03547461]
[1739263292499,4.8594,205.76,205.73,0.03547461]
[1739263292694,5.71570101,205.77,205.7,5.71570101]
[1739263293197,4.8595,205.75,205.7,5.71570101]
[1739263293897,4.8595,205.75,205.7,5.74787989]
[1739263294199,10.57490101,205.77,205.72,10.57590101]
[1739263294498,5.71570101,205.77,205.72,5.71570101]
[1739263295399,5.71570101,205.77,205.7,5.74787989]
[1739263295793,4.8593,205.76,205.71,4.8604]
[1739263295995,5.71570101,205.77,205.72,5.71570101]
[1739263296195,3.20225397,205.78,205.72,5.71570101]
[1739263296595,5.71570101,205.77,205.7,5.74787989]
[1739263297297,4.8595,205.75,205.7,10.60847989]
[1739263297696,5.71570101,205.77,205.7,5.74787989]
[1739263297901,4.8595,205.76,205.71,4.8603]
[1739263298996,10.57480101,205.77,205.7,5.74787989]
[1739263299400,5.71570101,205.77,205.7,5.74787989]
[1739263300901,4.8595,205.75,205.71,4.8604]
[1739263301095,5.71570101,205.73,205.7,0.03217888]
[1739263301300,4.8608,205.7,205.65,4.8617]
[1739263301500,5.71570101,205.71,205.65,4.8617]
[1739263302301,5.71570101,205.71,205.64,12.47567748]
[1739263302501,0.03519182,205.7,205.66,0.03645867]
[1739263302693,4.861,205.69,205.66,0.03645867]
[1739263304007,4.8613,205.68,205.66,0.03645867]
[1739263304600,0.03519182,205.7,205.62,5.71570101]
[1739263304601,4.8616,205.67,205.62,5.71570101]
[1739263304897,8.70730101,205.69,205.62,5.71570101]
[1739263305309,4.8614,205.67,205.62,5.71570101]
[1739263305606,8.70730101,205.69,205.62,5.71570101]
[1739263305807,8.70730101,205.69,205.62,5.75157057]
[1739263306601,4.8614,205.67,205.62,5.75157057]
[1739263308208,4.8612,205.68,205.62,5.75157057]
[1739263309002,4.8612,205.68,205.62,10.61417057]
[1739263309207,5.71570101,205.67,205.62,0.03586956]
[1739263309407,5.71570101,205.63,205.56,5.71570101]
[1739263310506,5.71570101,205.61,205.57,0.03577223]
[1739263311604,0.03117681,205.62,205.57,0.03577223]
[1739263312006,5.71570101,205.61,205.57,0.03577223]
[1739263312406,4.8631,205.6,205.57,0.03577223]
[1739263314506,10.57850101,205.61,205.57,0.03577223]
[1739263314707,13.64720101,205.61,205.57,0.03577223]
[1739263314907,8.78440101,205.61,205.57,0.03577223]
[1739263315407,5.71570101,205.59,205.54,5.71570101]
[1739263318810,4.8638,205.57,205.53,0.03384422]
[1739263319007,0.03382434,205.58,205.53,0.03384422]
[1739263319502,0.03382434,205.58,205.54,5.71570101]
[1739263319700,0.03382434,205.58,205.56,5.71570101]
[1739263320100,0.03382434,205.58,205.57,4.8638]
[1739263321613,5.71570101,205.68,205.56,5.71570101]
[1739263321815,9.04250101,205.7,205.64,5.71570101]
[1739263322112,9.04250101,205.7,205.62,5.71570101]
[1739263322314,3.1729,205.69,205.62,5.71570101]
[1739263322814,0.03412922,205.68,205.63,0.03661422]
[1739263323007,5.74983023,205.68,205.63,0.03661422]
[1739263323715,5.74983023,205.68,205.63,4.89891422]
[1739263324214,5.74983023,205.68,205.63,0.03661422]
[1739263324815,0.03412922,205.68,205.64,4.8621]
[1739263325006,0.03412922,205.68,205.66,5.71570101]
[1739263325212,3.0323,205.77,205.71,4.8604]
[1739263325410,3.0323,205.77,205.72,5.71570101]
[1739263325612,6.5272,205.77,205.72,5.71570101]
[1739263325804,5.71570101,205.76,205.7,5.71570101]
[1739263326009,5.71570101,205.74,205.68,5.71570101]
[1739263326409,0.03437976,205.73,205.69,0.03712403]
[1739263326914,5.71570101,205.72,205.69,0.03712403]
[1739263327415,0.03437976,205.73,205.69,0.03712403]
[1739263328314,0.03437976,205.73,205.7,10.57640101]
[1739263329313,0.03437976,205.73,205.7,5.71570101]
[1739263329618,0.03437976,205.73,205.69,4.89802403]
[1739263329918,0.03437976,205.73,205.69,0.03712403]
[1739263329919,5.71570101,205.72,205.69,0.03712403]
[1739263330117,4.8604,205.71,205.69,0.03712403]
[1739263330316,5.71570101,205.7,205.63,4.8621]
[1739263330517,5.71570101,205.66,205.6,5.71570101]
[1739263331019,5.71570101,205.66,205.62,4.8626]
[1739263331722,5.7474349,205.66,205.62,4.89340161]
[1739263332723,5.7474349,205.66,205.62,0.03080161]
[1739263333424,5.71570101,205.64,205.62,0.03080161]
[1739263333922,4.8623,205.63,205.62,0.03080161]
[1739263335418,5.71570101,205.64,205.54,5.71570101]
[1739263335725,10.57930101,205.58,205.53,6.75997647]
[1739263336031,4.864,205.57,205.53,6.75997647]
[1739263336330,5.71570101,205.58,205.53,6.75997647]
[1739263336537,4.90020153,205.57,205.53,0.03269123]
[1739263337130,4.8641,205.56,205.53,0.03269123]
[1739263337526,0.03640153,205.57,205.53,0.03269123]
[1739263339933,0.03640153,205.57,205.54,5.71570101]
[1739263342332,0.03640153,205.57,205.55,4.8642]
[1739263342636,0.03640153,205.57,205.56,5.71570101]
[1739263342825,0.03640153,205.57,205.56,10.57970101]
[1739263344733,0.03640153,205.57,205.56,5.71570101]
[1739263344932,0.03640153,205.57,205.53,0.03269123]
[1739263346334,0.03640153,205.57,205.54,5.71570101]
[1739263346634,0.03640153,205.57,205.56,5.71570101]
[1739263346936,0.03640153,205.57,205.54,5.71570101]
[1739263347438,0.03640153,205.57,205.55,4.864]
[1739263347835,0.03640153,205.57,205.54,5.71570101]
[1739263348041,0.03640153,205.57,205.54,10.58000101]
[1739263348236,0.03640153,205.57,205.56,5.71570101]
[1739263348437,0.03640153,205.57,205.56,10.57970101]
[1739263349439,3.0883,205.67,205.56,5.71570101]
[1739263349638,3.0883,205.67,205.63,5.71570101]
[1739263350238,5.71570101,205.64,205.57,5.71570101]
[1739263350735,4.89967887,205.63,205.58,0.03234552]
[1739263350941,0.03717887,205.63,205.58,0.03234552]
[1739263351645,5.71570101,205.62,205.58,0.03234552]
[1739263352241,5.71570101,205.6,205.58,0.03234552]
[1739263352742,5.71570101,205.62,205.58,4.89574552]
[1739263352942,5.71570101,205.62,205.58,0.03234552]
[1739263353941,5.71570101,205.6,205.51,5.71570101]
[1739263354138,5.71570101,205.58,205.51,5.71570101]
[1739263354839,5.71570101,205.54,205.48,46.08941914]
[1739263355347,0.03493385,205.53,205.49,4.89798009]
[1739263355644,5.71570101,205.52,205.49,0.03238009]
[1739263357644,5.71570101,205.5,205.49,0.03238009]
[1739263358042,10.58110101,205.5,205.49,0.03238009]
[1739263359149,10.58110101,205.5,205.43,5.71570101]
[1739263359445,5.71570101,205.48,205.43,5.71570101]
[1739263359836,5.71570101,205.48,205.44,4.8668]
[1739263360545,0.03579922,205.48,205.45,4.8665]
[1739263360842,0.03579922,205.48,205.44,0.03493727]
[1739263361848,0.03579922,205.48,205.45,4.8666]
[1739263362241,0.03579922,205.48,205.44,0.03493727]
[1739263362441,0.03579922,205.48,205.47,4.8661]
[1739263363048,0.03579922,205.48,205.47,10.58180101]
[1739263363946,8.66040101,205.6,205.5,4.8652]
[1739263364144,8.66040101,205.6,205.54,5.71570101]
[1739263364349,13.52350101,205.6,205.54,5.71570101]
[1739263364550,8.66040101,205.6,205.52,5.71570101]
[1739263364747,5.71570101,205.58,205.52,5.71570101]
[1739263364947,5.71570101,205.58,205.5,5.71570101]
[1739263365150,3.40441609,205.57,205.53,0.03353769]
[1739263367952,3.40441609,205.57,205.54,5.71570101]
[1739263368346,0.03611609,205.57,205.54,5.71570101]
[1739263368749,0.03611609,205.57,205.56,4.864]
[1739263368948,0.03611609,205.57,205.54,5.71570101]
[1739263369747,0.03611609,205.57,205.55,4.8642]
[1739263370148,0.03611609,205.57,205.54,5.71570101]
[1739263370352,0.03611609,205.57,205.55,4.8642]
[1739263370547,0.03611609,205.57,205.53,0.03353769]
[1739263371854,4.90001609,205.57,205.53,0.03353769]
[1739263373753,5.71570101,205.56,205.53,0.03353769]
[1739263373952,5.71570101,205.54,205.53,0.03353769]
[1739263375457,10.58020101,205.54,205.53,0.03353769]
[1739263375657,5.71570101,205.54,205.48,4.8659]
[1739263375857,5.71570101,205.52,205.48,4.8659]
[1739263376157,5.71570101,205.52,205.46,5.71570101]
[1739263376352,5.71570101,205.52,205.46,10.58200101]
[1739263376756,0.03212489,205.51,205.47,0.03603414]
[1739263377953,5.71570101,205.5,205.47,0.03603414]
[1739263378759,10.58160101,205.48,205.47,0.03603414]
[1739263379060,0.03212489,205.51,205.47,0.03603414]
[1739263380255,5.71570101,205.5,205.47,0.03603414]
[1739263380664,10.58130101,205.5,205.47,0.03603414]
[1739263381057,9.06380101,205.5,205.47,0.03603414]
[1739263381258,5.71570101,205.48,205.4,5.71570101]
[1739263381462,5.71570101,205.46,205.38,12.47567748]
[1739263382464,0.03656451,205.44,205.4,0.03477956]
[1739263382856,0.03656451,205.44,205.4,5.75048057]
[1739263383058,0.03656451,205.44,205.42,5.71570101]
[1739263383361,0.03656451,205.44,205.43,4.8671]
[1739263390165,0.03656451,205.44,205.4,0.03477956]
[1739263391369,0.03656451,205.44,205.4,4.90257956]
[1739263392562,0.03656451,205.44,205.41,4.8674]
[1739263392766,0.03656451,205.44,205.4,8.98790636]
[1739263393268,0.03656451,205.44,205.43,4.8671]
[1739263395663,0.03656451,205.44,205.42,4.8673]
[1739263395862,0.03656451,205.44,205.4,8.98790636]
[1739263397176,0.03656451,205.44,205.42,4.8671]
[1739263398473,0.03656451,205.44,205.4,8.98790636]
[1739263398775,0.03656451,205.44,205.42,4.8673]
[1739263400977,0.03656451,205.44,205.4,0.03477956]
[1739263401578,0.03656451,205.44,205.43,4.8671]
[1739263403774,0.03656451,205.44,205.42,4.8673]
[1739263404580,0.03656451,205.44,205.4,5.76554879]
[1739263405380,0.03656451,205.44,205.42,4.8671]
[1739263406980,0.03656451,205.44,205.41,4.8675]
[1739263407885,0.03656451,205.44,205.4,5.76554879]
[1739263408085,5.73076923,205.43,205.4,0.03477956]
[1739263409787,10.59796923,205.43,205.4,0.03477956]
[1739263409987,5.73076923,205.41,205.35,6.75997647]
[1739263410386,4.8679,205.4,205.35,6.75997647]
[1739263410583,5.73076923,205.39,205.35,6.75997647]
[1739263410784,5.73076923,205.39,205.32,5.73076923]
[1739263411290,0.03664286,205.38,205.33,0.03383151]
[1739263411493,0.03664286,205.38,205.36,5.73076923]
[1739263412793,0.03664286,205.38,205.37,4.8685]
[1739263413593,0.03664286,205.38,205.37,13.82460072]
[1739263423094,0.03664286,205.38,205.37,4.8685]
[1739263423998,0.03664286,205.38,205.35,4.8689]
[1739263431305,0.03664286,205.38,205.33,0.03383151]
[1739263431603,0.03664286,205.38,205.36,4.8687]
[1739263433107,0.03664286,205.38,205.33,0.03383151]
[1739263433612,0.03664286,205.38,205.36,5.73429989]
[1739263434505,0.03664286,205.38,205.36,10.60289989]
[1739263436311,0.03664286,205.38,205.36,4.8686]
[1739263439414,0.03664286,205.38,205.36,10.60289989]
[1739263439712,0.03664286,205.38,205.37,4.8685]
[1739263440213,0.03664286,205.38,205.36,10.60299989]
[1739263441715,0.03664286,205.38,205.36,5.73429989]
[1739263441914,0.03664286,205.38,205.37,4.8685]
[1739263442215,0.03664286,205.38,205.36,5.73429989]
[1739263443515,0.03664286,205.38,205.36,10.60279989]
[1739263446814,0.03664286,205.38,205.36,5.73429989]
[1739263447014,0.03664286,205.38,205.37,4.8685]
[1739263447417,0.03664286,205.38,205.36,5.73429989]
[1739263447612,0.03664286,205.38,205.36,10.60299989]
[1739263450307,0.03664286,205.38,205.36,10.60299989]
[1739263451813,0.03664286,205.38,205.37,4.8685]
[1739263456114,4.286e-05,205.38,205.37,4.8685]
[1739263456614,4.286e-05,205.38,205.36,5.73429989]
[1739263458613,4.286e-05,205.38,205.34,5.73429989]
[1739263459818,4.286e-05,205.38,205.34,10.60349989]
[1739263460622,4.286e-05,205.38,205.34,5.73429989]
[1739263461416,4.286e-05,205.38,205.34,10.60329989]
[1739263464421,4.286e-05,205.38,205.34,5.73429989]
[1739263466722,4.286e-05,205.38,205.33,0.03383151]
[1739263466925,5.73429989,205.36,205.33,0.03383151]
[1739263467120,5.73429989,205.34,205.3,6.75997647]
[1739263468226,5.73429989,205.34,205.3,6.79565723]
[1739263468821,5.73429989,205.34,205.3,0.03568076]
[1739263469123,9.05619989,205.34,205.3,0.03568076]
[1739263471135,3.3219,205.34,205.3,5.76998065]
[1739263471434,4.286e-05,205.38,205.34,4.8691]
[1739263471632,4.286e-05,205.38,205.34,10.60339989]
[1739263472630,4.286e-05,205.38,205.36,4.8687]
[1739263474334,4.286e-05,205.38,205.35,0.03249876]
[1739263475635,4.286e-05,205.38,205.36,4.8687]
[1739263475834,4.286e-05,205.38,205.35,0.03249876]
[1739263476340,4.286e-05,205.38,205.35,4.90129876]
[1739263477737,4.286e-05,205.38,205.35,0.03249876]
[1739263477935,10.60264275,205.38,205.35,0.03249876]
[1739263479440,4.286e-05,205.38,205.35,0.03249876]
[1739263480036,4.286e-05,205.38,205.35,4.90139876]
[1739263480241,4.286e-05,205.38,205.35,0.03249876]
[1739263481041,4.86834286,205.38,205.35,0.03249876]
[1739263481241,10.60264275,205.38,205.35,0.03249876]
[1739263483145,4.286e-05,205.38,205.35,4.90139876]
[1739263483645,4.286e-05,205.38,205.35,0.03249876]
[1739263483847,4.8686,205.37,205.35,0.03249876]
[1739263485447,5.73434275,205.38,205.35,0.03249876]
[1739263485644,4.8687,205.36,205.35,0.03249876]
[1739263486349,10.60299989,205.36,205.35,0.03249876]
[1739263492453,4.8691,205.35,205.31,4.8699]
[1739263492956,5.73429989,205.36,205.29,5.73429989]
[1739263493156,4.8693,205.34,205.3,4.8701]
[1739263494359,4.8693,205.34,205.29,10.60459989]
[1739263494856,4.90151056,205.34,205.29,10.60459989]
[1739263497054,0.03221056,205.34,205.29,5.73429989]
[1739263497262,4.8695,205.33,205.29,5.73429989]
[1739263498158,0.03221056,205.34,205.29,10.60469989]
[1739263498953,0.03221056,205.34,205.31,4.8698]
[1739263499557,0.03221056,205.34,205.29,5.73429989]
[1739263500350,5.76651045,205.34,205.27,5.73429989]
[1739263500552,3.3052,205.33,205.27,5.73429989]
[1739263500759,5.73429989,205.32,205.25,5.73429989]
[1739263501055,10.60399989,205.32,205.25,5.73429989]
[1739263501259,5.73429989,205.32,205.25,5.73429989]
[1739263501856,5.73429989,205.3,205.25,4.8713]
[1739263502057,5.73429989,205.3,205.23,12.49427636]
[1739263502357,0.03582755,205.3,205.25,5.73429989]
[1739263503059,0.03582755,205.3,205.26,4.871]
[1739263504963,0.03582755,205.3,205.25,5.73429989]
[1739263504964,0.03582755,205.3,205.27,4.8709]
[1739263505664,0.03582755,205.3,205.28,4.8704]
[1739263505861,0.03582755,205.3,205.27,5.73429989]
[1739263506765,0.03582755,205.3,205.29,4.8704]
[1739263507663,0.03582755,205.3,205.29,10.60469989]
[1739263532378,0.03582755,205.3,205.29,5.73429989]
[1739263534778,0.03582755,205.3,205.25,6.75997647]
[1739263534779,0.03582755,205.3,205.27,5.73429989]
[1739263535079,0.03582755,205.3,205.26,4.871]
[1739263536281,0.03582755,205.3,205.25,17.36557636]
[1739263536482,0.03582755,205.3,205.25,10.60559989]
[1739263537285,0.03582755,205.3,205.25,5.73429989]
[1739263538377,5.77012744,205.3,205.25,5.73429989]
[1739263538576,10.64032744,205.3,205.25,5.73429989]
[1739263538975,5.77012744,205.3,205.23,5.73429989]
[1739263539283,4.8705,205.29,205.23,5.73429989]
[1739263540180,10.60509989,205.28,205.21,5.73429989]
[1739263540385,5.73429989,205.24,205.2,26.73913291]
[1739263540883,5.76737441,205.24,205.2,31.61163291]
[1739263541286,5.76737441,205.24,205.21,4.8723]
[1739263541482,5.76737441,205.24,205.19,27.03990589]
[1739263541676,3.2729,205.23,205.19,27.03990589]
[1739263541885,6.153,205.23,205.19,27.03990589]
[1739263542285,5.73429989,205.22,205.18,11.63277647]
[1739263545183,5.73429989,205.22,205.19,4.8727]
[1739263548687,5.73429989,205.22,205.2,4.8725]
[1739263548992,6.153,205.23,205.2,4.8725]
[1739263549284,6.153,205.23,205.16,5.73429989]
[1739263549492,6.153,205.23,205.19,4.8728]
[1739263549689,6.153,205.23,205.16,5.73429989]
[1739263550093,6.153,205.23,205.18,4.873]
[1739263550594,5.73429989,205.22,205.17,4.8732]
[1739263551394,5.73429989,205.22,205.14,5.73429989]
[1739263551582,5.73429989,205.22,205.16,5.73429989]
[1739263551784,9.3371,205.23,205.16,5.73429989]
[1739263552092,0.0345555,205.21,205.16,5.73429989]
[1739263552293,0.0345555,205.21,205.17,4.8731]
[1739263552593,0.0345555,205.21,205.16,5.73429989]
[1739263552996,0.0345555,205.21,205.19,4.8725]
[1739263553293,0.0345555,205.21,205.16,5.73429989]
[1739263554696,0.0345555,205.21,205.14,5.73429989]
[1739263555094,4.9069555,205.21,205.14,5.73429989]
[1739263555294,5.73429989,205.2,205.14,5.73429989]
[1739263555797,0.0345555,205.21,205.14,5.73429989]
[1739263556393,0.0345555,205.21,205.16,5.73429989]
[1739263556597,0.0345555,205.21,205.16,10.60769989]
[1739263556794,5.73429989,205.2,205.12,5.73429989]
[1739263557395,5.73429989,205.2,205.14,5.73429989]
[1739263557894,0.03499633,205.19,205.14,5.73429989]
[1739263558093,0.03499633,205.19,205.16,4.8733]
[1739263558296,0.03499633,205.19,205.14,5.73429989]
[1739263558698,0.03499633,205.19,205.16,4.8733]
[1739263559196,0.03499633,205.19,205.18,4.873]
[1739263559600,0.03499633,205.19,205.18,10.60729989]
[1739263563502,0.03499633,205.19,205.18,4.873]
[1739263564506,0.03499633,205.19,205.16,5.73429989]
[1739263565107,0.03499633,205.19,205.18,10.60729989]
[1739263566310,0.03499633,205.19,205.18,4.873]
[1739263566613,0.03499633,205.19,205.14,5.73429989]
[1739263566811,5.73429989,205.18,205.12,32.77420578]
[1739263567010,5.73429989,205.18,205.12,27.03990589]
[1739263567409,0.03499633,205.19,205.12,27.03990589]
[1739263567410,5.73429989,205.14,205.12,27.03990589]
[1739263567808,4.8742,205.13,205.12,12.30540589]
[1739263568009,5.73429989,205.14,205.12,12.30540589]
[1739263568203,5.73429989,205.14,205.11,6.75997647]
[1739263568413,5.73429989,205.12,205.11,6.75997647]
[1739263570609,5.73429989,205.14,205.11,6.75997647]
[1739263570815,0.03329929,205.15,205.11,6.75997647]
[1739263571010,0.03329929,205.15,205.12,5.73429989]
[1739263571314,0.03329929,205.15,205.11,6.75997647]
[1739263571315,0.03329929,205.15,205.14,10.60829989]
[1739263571906,5.73429989,205.26,205.14,5.73429989]
[1739263572105,5.73429989,205.26,205.19,5.73429989]
[1739263573110,0.03577284,205.25,205.22,4.872]
[1739263573615,0.03577284,205.25,205.2,0.0326038]
[1739263573810,0.03577284,205.25,205.21,4.8721]
[1739263574016,0.03577284,205.25,205.2,0.0326038]
[1739263574914,5.73429989,205.22,205.2,0.0326038]
[1739263575514,4.8723,205.21,205.2,0.0326038]
[1739263575712,5.73429989,205.22,205.12,5.73429989]
[1739263576013,5.73429989,205.18,205.12,5.73429989]
[1739263577018,0.03654667,205.17,205.12,5.73429989]
[1739263577219,0.03654667,205.17,205.12,10.60869989]
[1739263578120,0.03654667,205.17,205.13,4.8742]
[1739263578314,0.03654667,205.17,205.16,5.73429989]
[1739263579210,0.03654667,205.17,205.14,5.73429989]
[1739263579412,0.03654667,205.17,205.12,5.73429989]
[1739263579620,5.73429989,205.16,205.1,5.73429989]
[1739263580617,5.73429989,205.16,205.1,10.60919989]
[1739263580919,5.73429989,205.12,205.07,6.75997647]
[1739263581313,5.76799303,205.12,205.07,6.75997647]
[1739263581818,5.76799303,205.12,205.06,5.73429989]
[1739263581819,10.64259303,205.12,205.06,5.73429989]
[1739263582715,5.76799303,205.12,205.04,5.73429989]
[1739263583123,4.8768,205.02,204.96,203.04644487]
[1739263583417,5.73429989,204.97,204.77,334.10802835]
[1739263583619,9.01358915,204.85,204.73,9.1197]
[1739263583818,9.01358915,204.88,204.73,18.13328915]
[1739263584010,9.01358915,204.91,204.74,4.8833]
[1739263584211,0.03597119,204.81,204.73,18.13328915]
[1739263584520,9.01358915,204.88,204.73,18.13328915]
[1739263584719,0.03426541,204.79,204.73,18.13328915]
[1739263585317,0.03426541,204.79,204.73,9.1197]
[1739263585622,0.03426541,204.79,204.7,9.01358915]
[1739263586121,77.07233315,204.78,204.7,9.01358915]
[1739263586319,40.86706943,204.77,204.69,42.3337217]
[1739263586624,40.86706943,204.77,204.68,9.01358915]
[1739263586823,40.86706943,204.76,204.69,87.78]
[1739263587120,0.03355666,204.75,204.69,33.36933634]
[1739263587419,40.90062609,204.75,204.69,33.36933634]
[1739263587820,40.90062609,204.75,204.7,87.78]
[1739263588216,40.90062609,204.75,204.7,96.79358915]
[1739263588521,40.86706943,204.74,204.73,9.01358915]
[1739263588820,30.89916943,204.74,204.73,96.79358915]
[1739263589213,41.96529587,204.74,204.73,96.79358915]
[1739263589412,41.96529587,204.74,204.73,96.77358915]
[1739263590121,41.96529587,204.74,204.72,101.69738915]
[1739263590320,41.96529587,204.74,204.72,96.81358915]
[1739263591028,15.86112644,204.73,204.72,96.81358915]
[1739263591626,15.86112644,204.73,204.72,3.56836076]
[1739263592028,15.86112644,204.73,204.72,3.54836076]
[1739263592229,36.20526372,204.73,204.72,3.54836076]
[1739263592522,36.20526372,204.73,204.7,87.82]
[1739263592723,9.01358915,204.71,204.57,9.01358915]
[1739263593125,0.0333181,204.66,204.59,4.887]
[1739263593324,0.0333181,204.66,204.57,9.01358915]
[1739263593527,0.0333181,204.66,204.6,9.01358915]
[1739263593828,15.86112644,204.73,204.62,4.8862]
[1739263594025,0.03240409,204.65,204.63,9.01358915]
[1739263594324,15.86112644,204.73,204.65,4.8855]
[1739263594521,15.86112644,204.73,204.64,2.9568]
[1739263594722,79.63013441,204.72,204.64,2.9568]
[1739263595326,0.03331321,204.7,204.66,0.03665749]
[1739263601127,0.03331321,204.7,204.67,4.8851]
[1739263602535,23.48613728,204.84,204.66,9.05024664]
[1739263602536,9.01358915,204.8,204.66,9.05024664]
[1739263602731,9.01358915,204.83,204.69,9.01358915]
[1739263602934,9.01358915,204.8,204.71,4.8841]
[1739263603127,9.01358915,204.8,204.69,9.01358915]
[1739263603128,9.01358915,204.8,204.66,9.01358915]
[1739263603738,9.01358915,204.8,204.71,0.03664034]
[1739263603936,0.03739283,204.75,204.71,0.03664034]
[1739263604452,9.01358915,204.74,204.71,0.0334107]
[1739263604737,9.01358915,204.74,204.65,87.88]
[1739263605033,9.01358915,204.74,204.7,0.03293983]
[1739263605735,0.03735748,204.75,204.7,0.03293983]
[1739263606939,0.03735748,204.75,204.7,4.91733983]
[1739263607538,0.03735748,204.75,204.71,4.8842]
[1739263608047,0.03735748,204.75,204.74,4.8835]
[1739263612042,0.03735748,204.75,204.7,0.03293983]
[1739263612739,0.03735748,204.75,204.71,4.884]
[1739263612940,0.03735748,204.75,204.7,0.03293983]
[1739263613940,0.03735748,204.75,204.72,4.8838]
[1739263614644,0.03735748,204.75,204.7,0.03293983]
[1739263615839,0.03735748,204.75,204.74,4.8835]
[1739263622651,0.03735748,204.75,204.71,9.2757]
[1739263623252,0.03735748,204.75,204.74,4.8835]
[1739263633158,358.90120501,204.85,204.72,9.01480492]
[1739263633353,358.90120501,204.85,204.75,9.01480492]
[1739263633755,358.90120501,204.85,204.8,4.8818]
[1739263633954,358.90120501,204.85,204.78,9.01480492]
[1739263634355,358.90120501,204.85,204.83,4.8812]
[1739263634557,0.03139684,204.84,204.83,4.8812]
[1739263634756,0.03139684,204.84,204.79,0.03761395]
[1739263635559,0.03139684,204.84,204.8,4.8819]
[1739263635762,0.03139684,204.84,204.79,0.03761395]
[1739263637659,0.03139684,204.84,204.83,4.8813]
[1739263641061,344.17530185,204.85,204.83,194.0]
[1739263641260,304.53250185,204.85,204.84,13.89590492]
[1739263642263,304.53250185,204.85,204.84,4.8811]
[1739263642765,304.53250185,204.85,204.83,194.0]
[1739263643156,304.53250185,204.85,204.84,4.8811]
[1739263643366,304.53250185,204.85,204.83,194.0]